bitfinex-derivatives/quotes_ETHF0:USTF0_20250604
["timestamp","ask_amount","ask_price","bid_price","bid_amount"]
[1749033478709,3.2078,2639.6,2639.5,0.75729]
[1749033478910,3.00274478,2639.7,2639.6,0.75727]
[1749033479909,3.75998478,2639.7,2639.6,0.75727]
[1749033481415,0.7573,2639.6,2639.5,0.75728]
[1749033485218,6.96784478,2639.6,2639.5,0.82460476]
[1749033485420,5.06304478,2639.6,2639.5,0.82460476]
[1749033485613,3.76004478,2639.6,2639.5,0.82460476]
[1749033485808,3.00274478,2639.6,2639.5,0.82460476]
[1749033486510,3.76000478,2639.6,2639.5,0.82460476]
[1749033488021,3.00274478,2639.6,2639.5,0.82460476]
[1749033488220,3.75999478,2639.7,2639.6,0.75726]
[1749033488616,3.75999478,2639.7,2639.6,1.40316]
[1749033489521,3.00274478,2639.7,2639.6,1.40316]
[1749033490620,3.75997478,2639.7,2639.6,1.40316]
[1749033490821,3.00274478,2639.7,2639.6,1.40316]
[1749033491121,3.75997478,2639.7,2639.6,1.40316]
[1749033491523,0.75726,2639.6,2639.5,0.82458476]
[1749033491820,6.96780478,2639.6,2639.5,0.06731476]
[1749033492016,5.23996,2639.6,2639.5,0.06731476]
[1749033492222,0.75742,2639.1,2639.0,0.76311397]
[1749033492423,3.76587552,2639.1,2639.0,0.00568397]
[1749033492623,0.75756,2638.6,2638.2,5.10197]
[1749033492820,1.89362,2639.0,2638.2,1.89417]
[1749033492821,3.96534,2638.7,2638.2,1.89417]
[1749033493022,0.75762,2638.4,2638.3,0.6426]
[1749033493222,5.1158,2638.7,2638.3,0.6426]
[1749033493422,0.75761,2638.5,2638.4,0.75761]
[1749033494426,0.75757,2638.6,2638.3,0.6426]
[1749033494727,0.75757,2638.6,2638.5,0.75756]
[1749033495321,3.84658397,2638.7,2638.6,0.75756]
[1749033495621,0.00568397,2638.7,2638.6,0.75756]
[1749033496527,0.76321397,2638.7,2638.6,0.75756]
[1749033496827,0.00568397,2638.7,2638.6,0.75756]
[1749033497727,0.76321397,2638.7,2638.6,0.75756]
[1749033498027,0.00568397,2638.7,2638.6,0.75756]
[1749033498626,0.76321397,2638.7,2638.6,0.75756]
[1749033498926,0.00568397,2638.7,2638.6,0.75756]
[1749033500331,0.00568397,2638.7,2638.6,0.82487476]
[1749033501940,0.76321397,2638.7,2638.6,0.82487476]
[1749033502520,0.00568397,2638.7,2638.6,0.82487476]
[1749033502929,0.76321397,2638.7,2638.6,0.82487476]
[1749033503134,0.00568397,2638.7,2638.6,0.82487476]
[1749033505628,0.76321397,2638.7,2638.6,0.82487476]
[1749033505933,0.00568397,2638.7,2638.6,0.82487476]
[1749033507130,0.00568397,2638.7,2638.6,1.43277476]
[1749033507733,0.76321397,2638.7,2638.6,1.43277476]
[1749033508529,0.00568397,2638.7,2638.6,1.43277476]
[1749033510432,0.00568397,2638.7,2638.6,4.64057476]
[1749033518340,0.00568397,2638.7,2638.6,1.43277476]
[1749033518535,0.76321397,2638.7,2638.6,1.43277476]
[1749033518732,0.64108397,2638.7,2638.6,1.43277476]
[1749033520539,1.39861397,2638.7,2638.6,1.43277476]
[1749033524041,0.64108397,2638.7,2638.6,1.43277476]
[1749033526647,0.00568397,2638.7,2638.6,1.43277476]
[1749033531647,0.84311803,2638.7,2638.6,1.43277476]
[1749033533865,0.84356679,2638.7,2638.6,1.43277476]
[1749033538068,0.00568397,2638.7,2638.6,1.43277476]
[1749033538273,0.84395883,2638.7,2638.6,1.43277476]
[1749033541167,0.00568397,2638.7,2638.6,1.43277476]
[1749033541363,0.8497584,2638.7,2638.6,1.43277476]
[1749033543268,1.5055584,2638.7,2638.6,1.43277476]
[1749033544076,2.2630884,2638.7,2638.6,0.82487476]
[1749033544278,5.27213561,2638.7,2638.6,0.82487476]
[1749033544469,6.54553561,2638.7,2638.6,0.82487476]
[1749033544962,5.78826723,2638.7,2638.6,0.82487476]
[1749033545167,0.85002002,2638.7,2638.6,0.82487476]
[1749033547470,2e-08,2638.7,2638.6,4.03267476]
[1749033547676,2.67914914,2639.0,2638.9,0.75748]
[1749033547975,3.2078,2639.3,2639.2,0.75739]
[1749033548577,3.96516,2639.3,2639.2,0.75739]
[1749033549977,3.2078,2639.3,2639.2,0.75739]
[1749033551477,1.97530397,2639.5,2639.4,0.75733]
[1749033551872,0.76300397,2639.5,2639.4,0.75733]
[1749033552277,0.75736,2639.4,2639.3,0.75734]
[1749033552480,0.76300397,2639.5,2639.4,0.75733]
[1749033553572,1.97910397,2639.5,2639.4,0.75733]
[1749033553973,0.75737,2639.4,2639.3,0.75735]
[1749033556174,0.75737,2639.3,2639.2,1.37729]
[1749033556377,1.8935,2639.2,2638.6,5.16898476]
[1749033556583,0.6137,2639.2,2639.1,0.75741]
[1749033556881,2.59123,2639.2,2639.1,0.75741]
[1749033557977,0.6137,2639.2,2639.1,0.75741]
[1749033560782,3.9652,2639.3,2639.2,0.7574]
[1749033562678,0.7574,2639.2,2639.1,1.45221476]
[1749033562874,0.7574,2639.2,2639.1,0.06731476]
[1749033563178,0.7574,2639.2,2639.1,0.82474476]
[1749033563179,3.76406656,2639.2,2639.1,0.82474476]
[1749033563983,3.76406656,2639.2,2639.1,0.06731476]
[1749033564283,2.0022,2639.2,2639.1,0.82474476]
[1749033564783,2.0022,2639.2,2639.1,0.06731476]
[1749033566284,5.00866313,2639.2,2639.1,0.06731476]
[1749033567483,10.00866313,2639.2,2639.1,0.06731476]
[1749033567683,0.75753,2638.8,2638.7,0.7575]
[1749033568188,0.75759,2638.6,2638.5,0.75757]
[1749033569086,0.75757,2638.6,2638.5,0.75757]
[1749033569387,2.06456,2638.7,2638.6,0.75757]
[1749033570485,0.75756,2638.7,2638.6,0.75757]
[1749033571591,0.75759,2638.6,2638.5,0.75756]
[1749033572487,0.75756,2638.7,2638.6,0.75753]
[1749033574390,0.75756,2638.7,2638.6,0.82484476]
[1749033592801,3.7642758,2638.7,2638.6,0.82484476]
[1749033592998,0.75756,2638.7,2638.6,0.82484476]
[1749033593401,3.7642758,2638.7,2638.6,0.82484476]
[1749033593591,3.0067158,2638.8,2638.7,0.75754]
[1749033593796,3.0067158,2638.8,2638.7,2.00154]
[1749033594196,3.7642258,2638.8,2638.7,2.00154]
[1749033595301,0.75754,2638.7,2638.6,0.82485476]
[1749033595502,3.76803409,2638.7,2638.6,0.82485476]
[1749033596200,0.75754,2638.7,2638.6,0.82485476]
[1749033596599,0.75753,2638.8,2638.7,0.75751]
[1749033596804,3.76802409,2638.8,2638.7,0.75751]
[1749033597302,0.75753,2638.8,2638.7,0.75751]
[1749033597502,3.76802409,2638.8,2638.7,0.75751]
[1749033601600,3.01049409,2638.8,2638.7,0.75751]
[1749033601802,0.75751,2638.8,2638.7,0.75751]
[1749033602898,3.01049409,2638.8,2638.7,0.75751]
[1749033604010,3.76800409,2638.8,2638.7,0.75751]
[1749033605810,3.76800409,2638.8,2638.7,0.82482476]
[1749033607903,3.01049409,2638.8,2638.7,0.82482476]
[1749033608204,3.01049409,2638.8,2638.7,2.14552476]
[1749033608806,1.8935,2639.2,2638.7,6.38801476]
[1749033608807,3.01049409,2639.0,2638.7,6.38801476]
[1749033609012,3.01049409,2639.1,2639.0,0.75745]
[1749033609307,6.21829409,2639.2,2639.1,0.75743]
[1749033609513,3.01049409,2639.3,2639.2,0.7574]
[1749033609813,3.01617806,2639.5,2639.4,0.75734]
[1749033610206,0.00568397,2639.5,2639.4,0.75734]
[1749033610809,0.76300397,2639.5,2639.4,0.75734]
[1749033612213,1.89336,2639.4,2638.4,3.2078]
[1749033612411,3.2078,2639.2,2638.8,0.641]
[1749033612616,0.75748,2639.0,2638.9,0.75746]
[1749033614812,1.241,2639.1,2639.0,0.75745]
[1749033615012,1.99845,2639.1,2639.0,0.75745]
[1749033618012,1.241,2639.1,2639.0,0.75745]
[1749033618316,1.99843,2639.1,2639.0,0.75745]
[1749033619318,1.241,2639.1,2639.0,0.75745]
[1749033619919,6.97570409,2639.2,2639.1,0.75743]
[1749033622220,0.75743,2639.1,2639.0,0.82474476]
[1749033622423,6.97570409,2639.2,2639.1,0.75743]
[1749033624124,3.96521,2639.2,2639.1,0.75743]
[1749033629631,0.75742,2639.1,2639.0,0.82474476]
[1749033630432,1.37602,2639.1,2639.0,0.82474476]
[1749033631231,1.37602,2639.1,2639.0,0.06731476]
[1749033631419,2.66842,2639.1,2639.0,0.06731476]
[1749033638332,5.87622,2639.1,2639.0,0.06731476]
[1749033644739,4.58382,2639.1,2639.0,0.06731476]
[1749033654748,1.37602,2639.1,2639.0,0.06731476]
[1749033654944,4.58382,2639.1,2639.0,0.06731476]
[1749033657547,0.75754,2638.7,2638.6,0.54938524]
[1749033657749,3.96534,2638.7,2638.6,0.54938524]
[1749033660647,0.75757,2638.6,2638.5,0.6522]
[1749033664752,0.75757,2638.6,2638.5,0.71951476]
[1749033683767,0.75757,2638.6,2638.3,0.6103]
[1749033683768,0.75762,2638.4,2638.3,0.6103]
[1749033684068,3.96542,2638.4,2638.3,0.6103]
[1749033684469,4.58912,2638.4,2638.3,0.6103]
[1749033684866,1.89417,2638.3,2637.0,3.2078]
[1749033685073,0.75785,2637.6,2637.5,0.6416]
[1749033685265,3.96565,2637.6,2637.5,0.6416]
[1749033685465,0.75797,2637.2,2637.1,1.2248]
[1749033685768,0.75805,2637.0,2636.4,1.89546]
[1749033685958,5.10257,2637.5,2636.9,0.00568397]
[1749033685959,3.2078,2637.2,2636.9,0.00568397]
[1749033686157,0.75801,2637.1,2636.9,0.76372397]
[1749033686358,0.75796,2637.3,2637.0,1.222]
[1749033686565,0.00568397,2637.4,2637.3,0.75794]
[1749033687271,0.76360397,2637.4,2637.2,0.75795]
[1749033687566,0.00568397,2637.4,2637.3,1.97994]
[1749033688766,0.00568397,2637.4,2637.3,6.97994]
[1749033688963,0.00568397,2637.4,2637.3,10.18774]
[1749033689270,3.2078,2637.8,2637.7,0.75782]
[1749033689573,3.2078,2638.1,2637.4,3.15086]
[1749033689774,0.75775,2638.0,2637.9,0.75775]
[1749033689967,0.75775,2638.0,2637.7,2.522]
[1749033690167,0.75775,2638.0,2637.8,1.2561]
[1749033690463,0.75775,2638.0,2637.9,0.75777]
[1749033690669,0.75777,2637.9,2637.8,2.01387]
[1749033691270,0.75777,2637.9,2637.8,1.2561]
[1749033691473,0.75777,2637.9,2637.8,2.0139]
[1749033691674,0.75777,2637.9,2637.8,1.2561]
[1749033691876,0.7578,2637.8,2637.7,1.2659]
[1749033692175,3.9656,2637.8,2637.7,1.2659]
[1749033695075,3.9656,2637.8,2637.7,1.33321476]
[1749033695273,3.9656,2637.8,2637.7,2.09103476]
[1749033695474,3.9656,2637.8,2637.7,1.33321476]
[1749033697772,3.9656,2637.8,2637.7,0.06731476]
[1749033705694,3.9656,2637.8,2637.7,0.82513476]
[1749033708687,3.9656,2637.8,2637.7,0.06731476]
[1749033708887,3.9656,2637.8,2637.7,0.82513476]
[1749033709189,3.9656,2637.8,2637.7,0.06731476]
[1749033709390,3.9656,2637.8,2637.7,0.82513476]
[1749033710192,0.7578,2637.8,2637.7,0.82513476]
[1749033711292,0.7578,2637.8,2637.7,0.06731476]
[1749033713490,2.0031,2637.8,2637.7,0.06731476]
[1749033713890,0.75795,2637.3,2637.2,0.75795]
[1749033714592,3.96574,2637.4,2637.3,0.75794]
[1749033715196,0.75794,2637.3,2637.2,0.75796]
[1749033717592,3.96575,2637.4,2637.3,0.75794]
[1749033718697,0.75796,2637.3,2637.2,0.75795]
[1749033719493,0.75796,2637.3,2637.0,4.35854]
[1749033719494,3.2078,2637.4,2637.3,0.75794]
[1749033719798,0.75791,2637.5,2637.4,0.75789]
[1749033721300,0.75794,2637.4,2637.3,0.75792]
[1749033721997,0.7579,2637.5,2637.4,0.75788]
[1749033723201,0.75788,2637.6,2637.5,0.75785]
[1749033723496,0.75787,2637.6,2637.5,0.75785]
[1749033724206,0.75787,2637.6,2637.5,2.01885]
[1749033724506,0.75787,2637.6,2637.5,2.08616476]
[1749033725605,0.75787,2637.6,2637.5,0.82516476]
[1749033726897,0.75782,2637.8,2637.7,0.75781]
[1749033727805,0.75784,2637.7,2637.6,0.75783]
[1749033728105,0.75783,2637.8,2637.5,0.06731476]
[1749033728306,0.75784,2637.7,2637.6,0.75783]
[1749033729007,5.76595,2638.0,2637.7,0.75781]
[1749033729204,0.75784,2637.7,2637.6,0.75783]
[1749033729607,0.75782,2637.8,2637.7,0.75781]
[1749033729802,0.75784,2637.7,2637.6,0.75783]
[1749033730106,0.75781,2637.8,2637.7,0.7578]
[1749033730411,0.75784,2637.7,2637.6,0.75782]
[1749033731106,0.75782,2637.8,2637.7,0.75781]
[1749033731301,0.75784,2637.7,2637.6,0.75783]
[1749033735008,0.75785,2637.6,2637.5,0.82519476]
[1749033736210,0.75785,2637.6,2637.5,1.47949476]
[1749033737613,3.96565,2637.7,2637.6,0.75785]
[1749033738213,0.75785,2637.6,2637.5,1.47947476]
[1749033739214,3.96565,2637.7,2637.6,0.75785]
[1749033739515,0.75785,2637.7,2637.6,0.75785]
[1749033739715,0.00568397,2638.2,2637.6,6.89458]
[1749033739912,0.00568397,2638.2,2638.1,0.75771]
[1749033740104,1.89352,2639.2,2637.9,3.2078]
[1749033740308,0.75749,2638.9,2638.8,0.75748]
[1749033740514,0.6577,2639.2,2638.7,1.89385]
[1749033740817,0.7574,2639.2,2639.1,0.7574]
[1749033741020,3.2078,2639.3,2639.0,0.75743]
[1749033741212,3.2078,2639.3,2639.1,0.75742]
[1749033741415,0.75743,2639.1,2639.0,0.75743]
[1749033741611,0.75742,2639.2,2639.1,0.75741]
[1749033742113,0.75743,2639.1,2639.0,0.75743]
[1749033742310,0.75743,2639.1,2639.0,0.75745]
[1749033742517,0.75745,2639.0,2638.9,0.00568397]
[1749033742713,4.58455,2639.0,2638.9,0.00568397]
[1749033746517,3.8271,2639.0,2638.9,0.76316397]
[1749033747521,0.6193,2639.0,2638.9,0.76316397]
[1749033748020,1.37675,2639.0,2638.9,0.76316397]
[1749033748214,1.37675,2639.0,2638.9,0.00568397]
[1749033749121,1.37675,2639.0,2638.9,0.76316397]
[1749033749321,0.75744,2639.1,2638.9,0.76316397]
[1749033749518,0.75741,2639.2,2639.0,0.75745]
[1749033749724,0.7574,2639.2,2639.0,0.75744]
[1749033750019,3.8108,2639.3,2639.0,0.75743]
[1749033750320,3.8108,2639.3,2638.9,0.00568397]
[1749033750522,0.76303397,2639.4,2639.0,0.75745]
[1749033751019,0.76303397,2639.4,2639.3,0.75736]
[1749033751215,0.00568397,2639.4,2639.3,0.75736]
[1749033751622,0.76302397,2639.4,2639.3,0.75736]
[1749033753222,0.00568397,2639.4,2639.3,0.75736]
[1749033753618,0.00568397,2639.4,2639.3,10.20426]
[1749033754018,3.2078,2640.3,2639.4,1.89332]
[1749033754226,0.75714,2640.2,2640.1,0.75712]
[1749033754520,0.75716,2640.1,2639.7,3.13222]
[1749033754821,0.75716,2640.1,2640.0,0.75716]
[1749033755223,0.75716,2640.1,2639.8,1.8738]
[1749033755224,0.75719,2639.9,2639.8,0.6347]
[1749033755420,0.75719,2639.9,2639.8,1.39192]
[1749033759425,0.75719,2639.9,2639.8,0.6347]
[1749033759629,0.00568397,2640.3,2640.2,0.75711]
[1749033761120,0.76276397,2640.3,2640.2,0.75711]
[1749033761426,0.00568397,2640.3,2640.2,0.75711]
[1749033762727,0.76276397,2640.3,2640.2,0.75711]
[1749033763735,0.00568397,2640.3,2640.2,0.75711]
[1749033764426,0.00568397,2640.3,2640.2,10.16651]
[1749033766027,1.89185,2641.5,2641.2,0.7568]
[1749033766221,0.75681,2641.3,2641.2,0.7568]
[1749033766427,0.75683,2641.2,2641.1,0.75682]
[1749033766629,0.75685,2641.1,2641.0,0.6511]
[1749033766829,0.75685,2641.1,2641.0,1.40798]
[1749033767230,1.39514,2641.2,2641.1,0.75685]
[1749033767931,0.75685,2641.1,2641.0,1.40796]
[1749033768330,1.39514,2641.2,2641.1,0.75685]
[1749033768931,0.75685,2641.1,2641.0,1.40796]
[1749033769434,0.6383,2641.2,2641.1,0.75685]
[1749033769733,0.00568397,2641.3,2641.2,0.75682]
[1749033770125,0.76247397,2641.3,2641.2,0.75682]
[1749033770833,0.00568397,2641.3,2641.2,0.75682]
[1749033771034,0.76247397,2641.3,2641.2,0.75682]
[1749033771536,0.00568397,2641.3,2641.2,0.75682]
[1749033772037,0.75682,2641.2,2641.1,0.82414476]
[1749033772434,0.75682,2641.2,2641.1,0.06731476]
[1749033772729,0.75682,2641.2,2641.1,0.82416476]
[1749033773033,0.75682,2641.2,2641.1,0.06731476]
[1749033773736,0.75682,2641.2,2641.1,0.82416476]
[1749033773935,0.76249397,2641.3,2641.2,0.75682]
[1749033775038,0.76249397,2641.3,2641.1,0.82414476]
[1749033775039,0.75682,2641.2,2641.1,0.82414476]
[1749033775430,0.00568397,2641.3,2641.1,0.06731476]
[1749033775632,0.00568397,2641.3,2641.2,0.75682]
[1749033775839,0.76247397,2641.3,2641.2,0.75682]
[1749033778541,0.00568397,2641.3,2641.2,0.75682]
[1749033779344,0.76247397,2641.3,2641.2,0.75682]
[1749033779547,0.75682,2641.2,2641.1,0.82414476]
[1749033779942,0.75682,2641.2,2641.1,0.06731476]
[1749033780344,0.75691,2640.9,2640.8,0.00568397]
[1749033780538,3.96471,2640.9,2640.8,0.00568397]
[1749033783453,3.2078,2640.9,2640.8,0.76261397]
[1749033783856,1.39236,2641.1,2640.8,0.00568397]
[1749033784054,0.6355,2641.1,2641.0,0.75688]
[1749033784250,0.6355,2641.1,2640.8,0.00568397]
[1749033784460,0.75689,2641.0,2640.9,0.75688]
[1749033784757,0.75688,2641.0,2640.9,0.75155543]
[1749033785054,1.39236,2641.1,2641.0,0.75688]
[1749033785546,0.6355,2641.1,2641.0,0.75688]
[1749033785751,0.75686,2641.1,2641.0,0.75687]
[1749033786057,3.96464,2641.2,2641.1,0.75685]
[1749033786859,0.75686,2641.1,2641.0,0.75686]
[1749033787554,0.00568397,2641.3,2640.8,1.35319873]
[1749033787555,0.76250397,2641.3,2641.1,0.75685]
[1749033787750,0.75682,2641.2,2641.1,0.75685]
[1749033787952,0.76249397,2641.3,2641.1,0.75685]
[1749033788159,0.00568397,2641.3,2641.2,0.75682]
[1749033789050,0.00568397,2641.3,2640.8,0.07299873]
[1749033789256,0.75687,2641.1,2641.0,0.75684]
[1749033789461,0.7569,2641.0,2640.9,0.75688]
[1749033790259,0.75691,2640.9,2640.8,0.07299873]
[1749033791253,2.08011,2640.9,2640.8,0.07299873]
[1749033792356,0.75691,2640.9,2640.8,0.07299873]
[1749033793057,0.75691,2640.9,2640.8,0.82992873]
[1749033794160,0.75691,2640.9,2640.8,0.07299873]
[1749033794657,2.01151,2640.9,2640.8,0.07299873]
[1749033795855,2.01151,2640.9,2640.8,0.82992873]
[1749033796055,2.01151,2640.9,2640.8,0.07299873]
[1749033799960,7.01151,2640.9,2640.8,0.07299873]
[1749033800870,0.75708,2640.3,2640.2,1.2476]
[1749033801967,0.75708,2640.3,2640.2,2.00471]
[1749033803268,0.75706,2640.4,2640.3,0.75706]
[1749033803469,3.8597,2640.5,2640.2,1.2476]
[1749033803669,0.75708,2640.4,2640.2,1.2476]
[1749033803858,0.75708,2640.3,2640.2,2.00468]
[1749033808073,4.61675,2640.5,2640.4,0.75705]
[1749033808373,3.96485,2640.5,2640.4,0.75705]
[1749033808773,0.75708,2640.4,2640.3,0.75706]
[1749033809174,3.96484,2640.5,2640.4,0.75705]
[1749033809573,3.2078,2640.5,2640.4,0.75705]
[1749033810163,0.757,2640.6,2640.5,0.75699]
[1749033810370,0.75705,2640.5,2640.4,0.75703]
[1749033810867,0.75705,2640.4,2640.3,1.99124]
[1749033811374,0.75703,2640.5,2640.4,0.75701]
[1749033812877,0.75703,2640.5,2640.4,0.75705]
[1749033813878,0.75705,2640.4,2640.3,0.75706]
[1749033814073,0.75708,2640.3,2640.2,2.0047]
[1749033814279,0.75708,2640.3,2640.2,2.00471]
[1749033815872,0.75714,2640.1,2640.0,0.00568397]
[1749033816273,0.75714,2640.1,2639.2,8.6648]
[1749033816274,3.8626,2640.2,2639.0,1.89361]
[1749033816474,3.2078,2639.4,2639.2,1.89349]
[1749033816670,3.16787,2640.1,2639.2,0.75738]
[1749033816671,5.10096,2639.7,2639.2,0.75738]
[1749033816882,0.75739,2639.2,2639.1,0.6298]
[1749033817072,0.75739,2639.2,2639.1,1.3872]
[1749033817376,0.75739,2639.2,2639.1,0.6298]
[1749033817678,0.75744,2639.1,2639.0,0.75745]
[1749033818578,0.75741,2639.2,2639.1,0.75742]
[1749033818777,0.75742,2639.1,2639.0,0.75743]
[1749033819180,0.75741,2639.2,2639.0,0.75743]
[1749033819578,1.2153,2639.3,2638.9,0.00568397]
[1749033819781,3.21348397,2639.4,2639.1,0.7574]
[1749033819981,0.75739,2639.2,2639.1,0.7574]
[1749033820281,3.21348397,2639.4,2639.0,0.75742]
[1749033820482,0.75741,2639.2,2639.0,0.75742]
[1749033820679,0.75742,2639.1,2639.0,0.75742]
[1749033820981,0.75741,2639.2,2639.0,0.75742]
[1749033821282,4.51778397,2639.4,2639.0,0.75742]
[1749033821581,0.75742,2639.2,2639.0,0.75742]
[1749033822576,4.51778397,2639.4,2639.1,0.75742]
[1749033822778,0.75743,2639.1,2639.0,0.75744]
[1749033822978,4.51778397,2639.4,2639.0,0.75744]
[1749033823180,0.75741,2639.2,2639.1,0.75742]
[1749033823783,0.75742,2639.1,2639.0,0.75743]
[1749033824384,0.75742,2639.2,2639.0,0.75743]
[1749033824587,0.75742,2639.2,2639.1,0.75742]
[1749033825685,0.75743,2639.1,2639.0,0.75743]
[1749033827487,0.7574,2639.2,2639.1,0.7574]
[1749033827884,0.75743,2639.1,2639.0,0.75743]
[1749033829286,0.75742,2639.2,2639.1,0.75742]
[1749033829889,0.75743,2639.1,2639.0,0.75743]
[1749033830088,0.75743,2639.1,2639.0,0.82474476]
[1749033830484,0.75741,2639.2,2639.1,0.75742]
[1749033830679,0.75742,2639.1,2639.0,0.82474476]
[1749033832888,3.21348397,2639.4,2639.3,0.75736]
[1749033833091,0.00568397,2639.4,2639.3,0.75736]
[1749033833487,6.96716,2640.1,2639.5,1.89327]
[1749033833787,0.75725,2639.8,2639.7,0.75724]
[1749033833984,3.2078,2639.8,2639.4,0.6008]
[1749033834183,0.75731,2639.5,2639.4,1.35811]
[1749033835493,0.75729,2639.6,2639.5,0.75728]
[1749033836388,0.76293397,2639.7,2639.6,0.75728]
[1749033837483,0.00568397,2639.7,2639.6,0.75728]
[1749033838190,3.2078,2640.1,2640.0,0.75716]
[1749033838395,0.75714,2640.2,2640.1,0.75712]
[1749033839196,0.75716,2640.1,2640.0,0.75714]
[1749033840594,0.75716,2640.0,2639.9,0.00568397]
[1749033840995,0.75716,2640.0,2639.9,0.76287397]
[1749033841196,0.75716,2640.0,2639.9,0.00568397]
[1749033841700,0.75716,2640.0,2639.9,0.76287397]
[1749033842902,3.2078,2640.1,2640.0,0.75716]
[1749033843802,3.2078,2640.1,2640.0,2.63576]
[1749033844503,3.96494,2640.1,2640.0,2.63576]
[1749033845199,0.75713,2640.2,2640.1,0.75711]
[1749033847908,0.00568397,2640.4,2640.3,1.96888]
[1749033856709,0.00568397,2640.4,2640.3,5.17668]
[1749033857205,0.75694,2640.8,2640.7,0.75696]
[1749033857605,0.75692,2640.9,2640.8,0.75693]
[1749033858401,0.00568397,2641.1,2641.0,0.75688]
[1749033858599,5.0994,2641.9,2641.0,0.75688]
[1749033858600,3.2078,2641.5,2641.0,0.75688]
[1749033858805,3.96454,2641.5,2641.4,0.75673]
[1749033859202,7.63301,2641.9,2641.1,0.6509]
[1749033859408,0.75682,2641.3,2641.2,0.7568]
[1749033859608,0.75678,2641.4,2641.3,0.75677]
[1749033859913,0.75682,2641.2,2641.1,1.40774]
[1749033860103,1.3978,2641.3,2641.2,0.75682]
[1749033860304,1.39781,2641.3,2641.1,0.6509]
[1749033860509,1.39781,2641.3,2641.1,1.40775]
[1749033861411,0.75682,2641.2,2641.1,0.6509]
[1749033861812,0.75685,2641.1,2641.0,0.00568397]
[1749033863817,2.00684,2641.2,2641.0,0.76255397]
[1749033864016,1.25,2641.2,2641.1,0.75685]
[1749033865420,0.75682,2641.2,2641.1,0.75685]
[1749033865616,0.75682,2641.2,2641.0,0.00568397]
[1749033865911,0.75684,2641.2,2641.0,0.76254397]
[1749033866119,0.75685,2641.1,2641.0,0.00568397]
[1749033867220,2.02104,2641.2,2641.0,0.76256397]
[1749033868021,0.75685,2641.1,2641.0,0.76255397]
[1749033868422,2.02104,2641.2,2641.0,0.76255397]
[1749033869615,2.02104,2641.2,2641.1,0.75685]
[1749033870020,1.2642,2641.2,2641.1,0.75685]
[1749033870321,2.02102,2641.2,2641.1,0.75685]
[1749033870615,1.2642,2641.2,2641.1,0.75685]
[1749033870822,0.641,2641.3,2641.2,0.75682]
[1749033871022,1.39779,2641.3,2641.2,0.75682]
[1749033873921,1.39779,2641.3,2641.1,0.75683]
[1749033874321,1.39779,2641.3,2641.2,0.75682]
[1749033874527,0.641,2641.3,2641.2,0.75682]
[1749033874822,3.96453,2641.6,2641.4,0.75675]
[1749033875023,3.2078,2641.6,2641.1,3.19491]
[1749033875231,5.09957,2641.6,2641.2,2.5758]
[1749033875625,0.75679,2641.3,2641.2,3.33261]
[1749033875826,0.75679,2641.3,2641.2,1.34031476]
[1749033876229,0.75679,2641.3,2641.2,0.06731476]
[1749033876826,2.01519,2641.3,2641.2,0.06731476]
[1749033877030,5.22299,2641.3,2641.2,0.06731476]
[1749033879128,3.96459,2641.3,2641.2,0.06731476]
[1749033880735,5.24669,2641.3,2641.2,0.06731476]
[1749033882036,10.24669,2641.3,2641.2,0.06731476]
[1749033882332,0.75699,2640.6,2640.4,0.75703]
[1749033882533,0.75699,2640.6,2640.5,0.75702]
[1749033883030,3.2078,2640.9,2640.2,7.3717]
[1749033883234,0.75704,2640.5,2640.3,0.76274397]
[1749033883733,0.75704,2640.5,2640.4,0.75705]
[1749033883934,0.75704,2640.5,2640.3,0.00568397]
[1749033884129,0.75704,2640.5,2640.4,0.75705]
[1749033885737,1.89242,2640.7,2640.3,0.76275397]
[1749033885936,0.75705,2640.4,2640.3,0.00568397]
[1749033886333,1.8614,2640.6,2640.3,0.76276397]
[1749033886532,0.75702,2640.5,2640.4,0.75703]
[1749033887031,1.3689,2640.6,2640.5,0.75702]
[1749033888832,0.6119,2640.6,2640.5,0.75702]
[1749033889035,0.00371881,2640.8,2640.7,0.75696]
[1749033889938,0.75696,2640.7,2640.6,2.01607]
[1749033890335,0.75696,2640.7,2640.6,1.2591]
[1749033890939,0.75696,2640.7,2640.6,2.01609]
[1749033891140,0.75696,2640.7,2640.6,1.2591]
[1749033891340,0.75696,2640.7,2640.6,2.01609]
[1749033891741,0.75696,2640.7,2640.6,1.2591]
[1749033892142,0.75696,2640.7,2640.6,2.01609]
[1749033892441,0.75696,2640.7,2640.6,1.2591]
[1749033892941,0.75696,2640.7,2640.6,2.01609]
[1749033893644,0.75696,2640.7,2640.6,1.2591]
[1749033893942,0.75696,2640.7,2640.6,2.01609]
[1749033894343,0.76066881,2640.8,2640.7,0.75696]
[1749033895744,0.00371881,2640.8,2640.7,0.75696]
[1749033896144,0.76064881,2640.8,2640.7,0.75696]
[1749033896345,0.76064881,2640.8,2640.6,2.01607]
[1749033896744,0.75696,2640.7,2640.6,2.01607]
[1749033896945,0.75696,2640.7,2640.6,2.01609]
[1749033897644,0.76066881,2640.8,2640.7,0.75696]
[1749033898043,0.00371881,2640.8,2640.7,0.75696]
[1749033900154,0.75696,2640.7,2640.6,2.01607]
[1749033900354,0.75696,2640.7,2640.6,1.2591]
[1749033900555,0.00371881,2640.8,2640.5,0.06731476]
[1749033900754,0.75698,2640.7,2640.6,0.75698]
[1749033901057,0.76066881,2640.8,2640.7,0.75696]
[1749033901258,0.75697,2640.7,2640.6,0.75697]
[1749033901464,0.76066881,2640.8,2640.7,0.75696]
[1749033902361,0.00371881,2640.8,2640.5,0.68871476]
[1749033902658,0.75697,2640.7,2640.6,0.75697]
[1749033903553,0.76066881,2640.8,2640.7,0.75696]
[1749033903753,0.00371881,2640.8,2640.7,0.75696]
[1749033905258,0.76064881,2640.8,2640.7,0.75696]
[1749033907165,0.00371881,2640.8,2640.7,0.75696]
[1749033907355,0.00371881,2640.8,2640.7,2.03376]